fUSD/lending_fUSD_20240220
["ID","MTS","AMOUNT","RATE_DAILY","PERIOD"]
[314579681,1708433443742,-500.0,0.00037808,2]
[314579682,1708433443752,-1478.57,0.00037808,2]
[314579683,1708433443761,-1127.73,0.00037808,2]
[314579684,1708433443770,-639.04403792,0.00037808,2]
[314579685,1708433443779,-500.0,0.00037808,2]
[314579686,1708433443788,-500.0,0.00037808,2]
[314579687,1708433443798,-500.0,0.00037808,2]
[314579688,1708433443807,-653.57808154,0.00037826,10]
[314579689,1708433443817,-2691.0,0.00037836,2]
[314579690,1708433443826,-1368.0,0.00037836,2]
[314579691,1708433443835,-842.0,0.00037836,2]
[314579692,1708433443844,-953.0,0.00037836,2]
[314579693,1708433443853,-216.0,0.00037836,2]
[314579694,1708433443863,-547.42233313,0.00037836,2]
[314579695,1708433443875,-708.57766687,0.00037836,2]
[314579696,1708433443884,-1231.0,0.00037836,2]
[314579697,1708433443893,-1830.638,0.00037836,2]
[314579698,1708433443902,-858.0,0.00037836,2]
[314579699,1708433443911,-429.0,0.00037836,2]
[314579700,1708433443920,-237.0,0.00037836,2]
[314579701,1708433443929,-2871.0,0.00037836,2]
[314579702,1708433443938,-343.0,0.00037836,2]
[314579703,1708433443947,-150.0,0.00037836,2]
[314579704,1708433443956,-321.0,0.00037836,2]
[314579705,1708433443965,-2161.445,0.00037836,2]
[314579706,1708433443974,-454.0,0.00037836,2]
[314579707,1708433443984,-360.54372666,0.00037836,2]
[314579708,1708433444105,-28.45627334,0.00037836,2]
[314579709,1708433444114,-2291.0,0.00037836,2]
[314579710,1708433444124,-4103.0,0.00037836,2]
[314579711,1708433444134,-8174.0,0.00037836,2]
[314579712,1708433444143,-150.0,0.00037836,2]
[314579713,1708433444153,-2569.03723666,0.00037836,2]
[314579714,1708433444165,-361.96276334,0.00037836,2]
[314579715,1708433444174,-4924.413,0.00037836,2]
[314579716,1708433444185,-1670.824,0.00037836,2]
[314579717,1708433444195,-6875.98467866,0.00037836,2]
[314579718,1708433444207,-353.05970985,0.00037836,2]
[314579719,1708433444219,-9005.47336481,0.00037836,2]
[314579720,1708433444230,-2934.74707781,0.00037836,2]
[314579721,1708433444249,-689.73516887,0.00037836,2]
[314579722,1708433444258,-296.33310604,0.00037836,2]
[314579723,1708433444270,-741.66689396,0.00037836,2]
[314579724,1708433444279,-295.442,0.00037836,2]
[314579725,1708433444288,-151.495,0.00037836,2]
[314579726,1708433444297,-164.2,0.0003789,2]
[314579727,1708433444308,-384.98254227,0.00038082,2]
[314579728,1708433444317,-453.07834187,0.00038082,2]
[314579737,1708433445472,-483.87719183,0.00038082,2]
[314579739,1708433445485,-1764.6344663,0.00038082,2]
[314579740,1708433445495,-500.0,0.00038082,2]
[314579741,1708433445504,-501.54,0.00038082,2]
[314579742,1708433445514,-500.0,0.00038082,2]
[314579743,1708433445523,-1478.57,0.00038082,2]
[314579744,1708433445533,-1127.73,0.00038082,2]
[314579746,1708433445542,-500.0,0.00038082,2]
[314579747,1708433445552,-500.0,0.00038082,2]
[314579749,1708433445561,-644.34,0.00038082,2]
[314579750,1708433445571,-195.0,0.00038174,2]
[314579751,1708433445580,-156.12703238,0.0003831,2]
[314579752,1708433445589,-164.2,0.00038325,2]
[314579753,1708433445600,-292.35,0.00038352,2]
[314579754,1708433445610,-1519.0062219,0.00038356,2]
[314579755,1708433445622,-1182.5837781,0.00038356,2]
[314579756,1708433445632,-471.00080446,0.00038356,2]
[314579757,1708433445672,-28.99919554,0.00038356,2]
[314579758,1708433445681,-500.0,0.00038356,2]
[314579759,1708433445690,-1478.57,0.00038356,2]
[314579760,1708433445699,-1127.73,0.00038356,2]
[314579761,1708433445709,-500.0,0.00038356,2]
[314579762,1708433445718,-500.0,0.00038356,2]
[314579763,1708433445727,-152.29,0.00038356,2]
[314579764,1708433445736,-2567.0,0.000384,3]
[314579765,1708433445745,-3369.0,0.000384,3]
[314579766,1708433445755,-330.22,0.00038476,2]
[314579767,1708433445764,-724.23,0.00038524,2]
[314579768,1708433445773,-2701.59,0.0003863,6]
[314579769,1708433445783,-500.0,0.0003863,6]
[314579770,1708433445792,-500.0,0.0003863,6]
[314579771,1708433445801,-1478.57,0.0003863,6]
[314579772,1708433445812,-1127.73,0.0003863,6]
[314579773,1708433445822,-206.69,0.0003863,6]
[314579774,1708433445833,-500.0,0.0003863,6]
[314579775,1708433445843,-164.1,0.00038667,2]
[314579776,1708433445857,-1000.0,0.00038718,2]
[314579777,1708433445867,-7234.15235889,0.00038748,2]
[314579778,1708433445878,-47705.053071,0.0003889,3]
[314579779,1708433445891,-8855.95029066,0.0003889,3]
[314579780,1708433445920,-791.65526421,0.0003889,3]
[314579781,1708433445931,-17608.71014263,0.0003889,3]
[314579782,1708433445941,-2701.59,0.00038904,6]
[314579783,1708433445951,-500.0,0.00038904,6]
[314579784,1708433445961,-500.0,0.00038904,6]
[314579785,1708433445970,-1478.57,0.00038904,6]
[314579786,1708433445979,-1127.73,0.00038904,6]
[314579787,1708433445989,-500.0,0.00038904,6]
[314579788,1708433445999,-2701.59,0.00039178,6]
[314579789,1708433446009,-500.0,0.00039178,6]
[314579790,1708433446018,-500.0,0.00039178,6]
[314579792,1708433446027,-1478.57,0.00039178,6]
[314579794,1708433446037,-1127.73,0.00039178,6]
[314579796,1708433446046,-500.0,0.00039178,6]
[314579798,1708433446055,-285.771833,0.00039273,2]
[314579800,1708433446066,-256.601381,0.00039273,2]
[314579802,1708433446077,-298.036869,0.00039273,2]
[314579804,1708433446090,-228.466309,0.00039273,2]
[314579806,1708433446102,-235.91111,0.00039273,2]
[314579808,1708433446112,-164.005424,0.00039273,2]
[314579810,1708433446122,-157.67,0.00039298,2]
[314579812,1708433446132,-571.97341254,0.00039315,2]
[314579814,1708433446141,-2701.59,0.00039452,6]
[314579816,1708433446151,-500.0,0.00039452,6]
[314579818,1708433446161,-500.0,0.00039452,6]
[314579820,1708433446170,-1478.57,0.00039452,6]
[314579822,1708433446180,-1127.73,0.00039452,6]
[314579824,1708433446189,-500.0,0.00039452,6]
[314579826,1708433446199,-672.0756812,0.00039511,11]
[314579827,1708433446208,-292.35,0.0003963,2]
[314579828,1708433446217,-2701.59,0.00039726,6]
[314579829,1708433446227,-500.0,0.00039726,6]
[314579830,1708433446236,-500.0,0.00039726,6]
[314579831,1708433446245,-1478.57,0.00039726,6]
[314579832,1708433446256,-1127.73,0.00039726,6]
[314579833,1708433446265,-500.0,0.00039726,6]
[314579834,1708433446274,-666.0,0.00039733,2]
[314579835,1708433446284,-285.771833,0.00039764,2]
[314579836,1708433446294,-256.601381,0.00039764,2]
[314579837,1708433446303,-228.466309,0.00039764,2]
[314579838,1708433446313,-235.91111,0.00039764,2]
[314579839,1708433446322,-152.29,0.00039954,2]
[314579840,1708433446331,-500.0,0.0004,2]
[314579841,1708433446340,-3145.7772,0.0004,10]
[314579842,1708433446351,-2701.59,0.0004,6]
[314579843,1708433446361,-500.0,0.0004,6]
[314579844,1708433446370,-500.0,0.0004,6]
[314579845,1708433446380,-1478.57,0.0004,6]
[314579846,1708433446389,-1127.73,0.0004,6]
[314579847,1708433446399,-500.0,0.0004,6]
[314579848,1708433446408,-180.31734563,0.00040118,12]
[314579849,1708433446417,-724.23,0.00040168,2]
[314579850,1708433446426,-500.0,0.000402,2]
[314579851,1708433446435,-150.0,0.00040244,30]
[314579852,1708433446445,-285.771833,0.00040255,2]
[314579853,1708433446455,-256.601381,0.00040255,2]
[314579854,1708433446464,-228.466309,0.00040255,2]
[314579855,1708433446474,-235.91111,0.00040255,2]
[314579856,1708433446483,-2701.59,0.00040273,6]
[314579857,1708433446493,-500.0,0.00040273,6]
[314579858,1708433446502,-150.31,0.00040273,6]
[314579859,1708433446512,-1478.57,0.00040273,6]
[314579860,1708433446522,-1127.73,0.00040273,6]
[314579861,1708433446531,-486.90200751,0.00040273,6]
[314579862,1708433446542,-6836.04649288,0.00040366,9]
[314579863,1708433446552,-52968.85621392,0.00040373,5]
[314579864,1708433470074,70000.0,0.00023,2]
[314579865,1708433470106,6623.12669055,0.00023,2]
[314579866,1708433470132,7000.0,0.00023,2]
[314579867,1708433470162,348555.71071454,0.00023,2]
[314579871,1708433720937,-551.32847374,0.00024898,2]
[314579872,1708433758404,-1800.0,0.00024899,2]
[314579873,1708433795806,-801.0,0.00024899,2]
[314579874,1708434284404,180.69,0.00022241,2]
[314579875,1708434569137,21403.42938987,0.0002701,120]
[314579882,1708434631731,-1048.51176729,0.00024858,2]
[314579883,1708434631741,-598.94397288,0.00024859,2]
[314579884,1708434631895,-337.36422266,0.00024859,2]
[314579885,1708434631907,-275.24461582,0.00024859,2]
[314579886,1708434631916,-181.82148276,0.0002486,2]
[314579887,1708434631926,-1068.4209961,0.0002486,2]
[314579888,1708434631935,-230.46466223,0.00024861,2]
[314579889,1708434631945,-2153.56406468,0.00024861,2]
[314579890,1708434631956,-642.29488031,0.00024898,2]
[314579891,1708434631965,-150.0,0.00024898,2]
[314579892,1708434631975,-3639.47336693,0.00024899,2]
[314579893,1708434631993,-401.82437314,0.00024899,2]
[314579894,1708434632006,-970.25658266,0.00024899,2]
[314579895,1708434632016,-750.0,0.00025,3]
[314579896,1708434632026,-540.86,0.00025884,2]
[314579897,1708434632036,-595.15,0.00025884,2]
[314579898,1708434632046,-465.41,0.00025884,2]
[314579899,1708434632055,-1852.42,0.00026352,2]
[314579900,1708434632065,-1000.0,0.00026369,2]
[314579901,1708434632074,-2200.96,0.0002645,2]
[314579902,1708434632083,-299.99,0.0002645,12]
[314579903,1708434632092,-499.99,0.0002645,2]
[314579904,1708434632101,-166.6,0.00026487,2]
[314579905,1708434632111,-2705.0,0.00026579,2]
[314579906,1708434632120,-302.29,0.00026579,2]
[314579907,1708434632129,-2000.0,0.0002661,2]
[314579908,1708434632139,-163.5,0.00026648,2]
[314579909,1708434632148,-163.5,0.00026721,2]
[314579910,1708434632157,-163.5,0.00026794,2]
[314579911,1708434632166,-264.55,0.00026827,2]
[314579912,1708434632175,-163.5,0.00026867,2]
[314579913,1708434632185,-163.5,0.00026941,2]
[314579914,1708434632195,-264.55,0.00026968,2]
[314579915,1708434632204,-800.0,0.00027,3]
[314579916,1708434632213,-163.5,0.00027014,2]
[314579917,1708434632222,-250.0,0.00027021,2]
[314579918,1708434632231,-163.5,0.00027087,2]
[314579919,1708434632241,-36507.64099637,0.00027108,2]
[314579920,1708434632253,-2693.03272659,0.00027108,2]
[314579923,1708434638794,-2612.20264756,0.00027108,2]
[314579924,1708434638849,-336.02735774,0.00027108,2]
[314579925,1708434638955,-50.43520653,0.00027108,2]
[314579926,1708434638984,-88073.63228993,0.00027108,2]
[314579927,1708434638993,-264.55,0.00027109,2]
[314579928,1708434639003,-163.5,0.0002716,2]
[314579929,1708434639013,-163.5,0.00027233,2]
[314579930,1708434639023,-264.55,0.00027251,2]
[314579931,1708434639032,-163.5,0.00027306,2]
[314579932,1708434639042,-163.5,0.00027379,2]
[314579933,1708434639052,-210.0,0.00027388,2]
[314579934,1708434639062,-264.55,0.00027392,2]
[314579935,1708434639072,-287.27,0.00027397,2]
[314579936,1708434639082,-174.18,0.00027445,10]
[314579937,1708434639092,-163.5,0.00027452,2]
[314579938,1708434639106,-163.5,0.00027525,2]
[314579939,1708434639116,-264.55,0.00027533,2]
[314579940,1708434639125,-287.27,0.00027556,2]
[314579941,1708434639134,-163.5,0.00027598,2]
[314579942,1708434639145,-163.5,0.00027672,2]
[314579943,1708434639157,-264.55,0.00027674,2]
[314579944,1708434639168,-287.27,0.00027714,2]
[314579945,1708434639177,-163.5,0.00027745,2]
[314579946,1708434639187,-150.0,0.00027801,2]
[314579947,1708434639197,-264.55,0.00027815,2]
[314579948,1708434639206,-163.5,0.00027818,2]
[314579949,1708434639216,-287.27,0.00027872,2]
[314579950,1708434639225,-163.5,0.00027891,2]
[314579951,1708434639235,-394.32,0.00027903,2]
[314579952,1708434639244,-264.55,0.00027957,2]
[314579953,1708434639253,-163.5,0.00027964,2]
[314579954,1708434639263,-166.76,0.00027983,2]
[314579955,1708434639273,-698.04479025,0.00027987,2]
[314579956,1708434639283,-42885.01754726,0.00027989,2]
[314579957,1708434639293,-712.11779661,0.00027997,2]
[314579958,1708434639303,-155.0,0.00027997,2]
[314579959,1708434639313,-512.95733055,0.00027997,2]
[314579960,1708434639322,-155.0,0.00027998,2]
[314579961,1708434639332,-500.0,0.00027998,2]
[314579962,1708434639342,-155.0,0.00027998,2]
[314579963,1708434639352,-273.31169993,0.00027998,2]
[314579964,1708434639363,-515.97745498,0.00027998,2]
[314579965,1708434639374,-1731.267,0.00027999,2]
[314579966,1708434639385,-168306.72369465,0.00028,2]
[314579967,1708434639396,-692.51,0.00028,2]
[314579968,1708434639409,-800.0,0.00028,2]
[314579969,1708434639420,-200.0,0.00028,2]
[314579970,1708434639430,-500.0,0.0002801,2]
[314579971,1708434639440,-287.27,0.0002803,2]
[314579972,1708434639451,-163.5,0.00028037,2]
[314579973,1708434639462,-2200.96,0.00028094,2]
[314579974,1708434639472,-264.55,0.00028098,2]
[314579975,1708434639482,-10098.85981138,0.000281,2]
[314579976,1708434639492,-10555.97,0.00028114,2]
[314579977,1708434639503,-150.0,0.00028146,2]
[314579978,1708434639513,-540.86,0.00028147,2]
[314579979,1708434639523,-287.27,0.00028189,2]
[314579980,1708434639535,-250.0,0.00028217,2]
[314579981,1708434639550,-750.0,0.00028227,2]
[314579982,1708434639559,-264.55,0.00028239,2]
[314579983,1708434639569,-874.61,0.00028326,2]
[314579984,1708434639579,-287.27,0.00028347,2]
[314579985,1708434639589,-264.55,0.0002838,2]
[314579986,1708434639599,-287.27,0.00028505,2]
[314579987,1708434639608,-264.55,0.00028521,2]
[314579988,1708434639618,-264.55,0.00028663,2]
[314579989,1708434639628,-287.27,0.00028664,2]
[314579990,1708434639638,-264.55,0.00028804,2]
[314579991,1708434639651,-287.27,0.00028822,2]
[314579992,1708434639661,-385.18,0.00028916,2]
[314579993,1708434639672,-264.55,0.00028945,2]
[314579994,1708434639682,-850.0,0.00029,3]
[314579995,1708434639692,-264.55,0.00029086,2]
[314579996,1708434639702,-264.55,0.00029227,2]
[314579997,1708434639712,-150.0,0.00029273,2]
[314579998,1708434639722,-264.55,0.00029369,2]
[314579999,1708434639732,-264.55,0.0002951,2]
[314580000,1708434639741,-315.44,0.00029559,2]
[314580001,1708434639750,-1000.0,0.00029665,2]
[314580002,1708434639760,-2200.96,0.00029737,2]
[314580003,1708434639770,-3041.86611419,0.0003,2]
[314580004,1708434639779,-42179.92622739,0.0003,2]
[314580005,1708434639789,-155.0,0.0003,4]
[314580006,1708434639798,-297.10793557,0.000301,2]
[314580007,1708434639807,-174.18,0.00030135,10]
[314580008,1708434639817,-154.23,0.00030137,2]
[314580009,1708434639826,-173.89,0.00030329,2]
[314580010,1708434639835,-385.18,0.00030362,2]
[314580011,1708434639845,-540.86,0.00030411,2]
[314580012,1708434639854,-900.0,0.00031,3]
[314580013,1708434639863,-208.0,0.00031094,2]
[314580014,1708434639872,-2200.96,0.00031381,2]
[314580015,1708434639881,-173.89,0.00031616,2]
[314580016,1708434639890,-158.35778267,0.0003165,2]
[314580017,1708434639900,-154.23,0.00031703,2]
[314580018,1708434639909,-166.6,0.00031784,2]
[314580019,1708434639919,-385.18,0.00031808,2]
[314580020,1708434639928,-187.59,0.00031827,2]
[314580021,1708434639938,-25907.41554419,0.000319,4]
[314580022,1708434639948,-187.59,0.00031995,2]
[314580023,1708434639957,-76019.78953353,0.00032,2]
[314580024,1708434639966,-1975.02417707,0.00032,2]
[314580025,1708434639976,-169.18,0.00032037,2]
[314580026,1708434639985,-158.35778267,0.00032119,2]
[314580027,1708434639995,-187.59,0.00032162,2]
[314580028,1708434640007,-187.59,0.0003233,2]
[314580029,1708434640017,-187.59,0.00032497,2]
[314580030,1708434640027,-158.35778267,0.00032588,2]
[314580031,1708434640037,-187.59,0.00032665,2]
[314580032,1708434640046,-540.86,0.00032675,2]
[314580033,1708434640056,-208.0,0.00032794,5]
[314580034,1708434640065,-187.59,0.00032832,2]
[314580035,1708434640075,-173.89,0.00032903,2]
[314580036,1708434640086,-165.47,0.0003292,2]
[314580037,1708434640096,-1000.0,0.00032961,2]
[314580038,1708434640105,-187.59,0.00033,2]
[314580039,1708434640114,-1260.84963961,0.00033,2]
[314580040,1708434640124,-639.74114869,0.00033,4]
[314580041,1708434640133,-950.0,0.00033,3]
[314580042,1708434640143,-2200.96,0.00033025,2]
[314580043,1708434640154,-158.35778267,0.00033056,2]
[314580044,1708434640163,-187.59,0.00033167,2]
[314580045,1708434640172,-385.18,0.00033254,2]
[314580046,1708434640182,-154.23,0.00033268,2]
[314580047,1708434640191,-187.59,0.00033335,2]
[314580048,1708434640200,-187.59,0.00033502,2]
[314580049,1708434640209,-158.35778267,0.00033525,2]
[314580050,1708434640219,-187.59,0.0003367,2]
[314580051,1708434640228,-187.59,0.00033837,2]
[314580052,1708434640238,-158.35778267,0.00033994,2]
[314580053,1708434640248,-187.59,0.00034005,2]
[314580054,1708434640257,-187.59,0.00034172,2]
[314580055,1708434640266,-173.89,0.0003419,2]
[314580056,1708434640276,-187.59,0.0003434,2]
[314580057,1708434640286,-158.35778267,0.00034463,2]
[314580058,1708434640295,-208.0,0.00034494,8]
[314580059,1708434640305,-155.0,0.000345,2]
[314580060,1708434640315,-177.58,0.000345,2]
[314580061,1708434640324,-500.0,0.000345,2]
[314580062,1708434640334,-259.1,0.000345,7]
[314580063,1708434640344,-209.33113169,0.000345,2]
[314580064,1708434640353,-150.0,0.000345,2]
[314580065,1708434640372,-150.0,0.000345,2]
[314580066,1708434640383,-300.0,0.000345,5]
[314580067,1708434640393,-187.59,0.00034507,2]
[314580068,1708434640404,-700.77392459,0.0003451,2]
[314580069,1708434640413,-407.190998,0.0003452,2]
[314580070,1708434640423,-2823.613965,0.0003452,2]
[314580071,1708434640433,-39677.263896,0.0003452,2]
[314580072,1708434640443,-3705.89,0.00034521,2]
[314580073,1708434640456,-259.1,0.00034637,7]
[314580074,1708434640466,-2200.96,0.00034669,2]
[314580075,1708434640475,-187.59,0.00034675,2]
[314580076,1708434640486,-385.18,0.00034699,2]
[314580077,1708434640495,-417.80447985,0.00034774,7]
[314580078,1708434640505,-610.786497,0.00034794,2]
[314580079,1708434640514,-4235.420948,0.00034794,2]
[314580080,1708434640524,-59515.895845,0.00034794,2]
[314580081,1708434640536,-154.23,0.00034834,2]
[314580082,1708434640547,-187.59,0.00034842,2]
[314580083,1708434640557,-1125.92,0.00034907,2]
[314580084,1708434640566,-814.381996,0.00034931,2]
[314580085,1708434640576,-5647.227931,0.00034931,2]
[314580086,1708434640585,-79354.527793,0.00034931,2]
[314580087,1708434640595,-158.35778267,0.00034931,2]
[314580088,1708434640604,-540.86,0.00034939,2]
[314580089,1708434640614,-736.28361631,0.00034975,2]
[314580090,1708434640624,-395.97065424,0.00034975,2]
[314580091,1708434640634,-172.71046238,0.00035,5]
[314580092,1708434640643,-1514.23242461,0.00035,2]
[314580093,1708434640654,-1049.8701984,0.00035,2]
[314580094,1708434640664,-15886.1237468,0.00035,7]
[314580095,1708434640673,-1000.0,0.00035,3]
[314580096,1708434640683,-899.99999904,0.00035,36]
[314580097,1708434640693,-41246.5,0.00035,2]
[314580098,1708434640702,-701.02918323,0.00035,4]
[314580099,1708434640711,-187.59,0.0003501,2]
[314580100,1708434640721,-5986.50396253,0.00035042,7]
[314580101,1708434640730,-153.55220968,0.00035042,2]
[314580102,1708434640739,-174.39240566,0.00035042,2]
[314580103,1708434640748,-177.58,0.00035048,2]
[314580104,1708434640758,-500.0,0.00035048,2]
[314580105,1708434640767,-150.0,0.00035048,2]
[314580106,1708434640776,-1017.977496,0.00035068,2]
[314580107,1708434640786,-7059.034914,0.00035068,2]
[314580108,1708434640795,-99193.159741,0.00035068,2]
[314580109,1708434640804,-199.32469466,0.00035075,7]
[314580110,1708434640814,-395.97065422,0.00035081,2]
[314580111,1708434640823,-117438.77764462,0.0003514,2]
[314580112,1708434640832,-100000.0,0.00035142,2]
[314580113,1708434640842,-395.97065422,0.00035188,2]
[314580114,1708434640851,-800.0,0.00035233,2]
[314580115,1708434640860,-281.87526246,0.00035242,3]
[314580116,1708434640870,-245000.0,0.00035242,2]
[314580117,1708434640879,-395.97065422,0.00035294,2]
[314580118,1708434640888,-5986.50396251,0.00035297,7]
[314580119,1708434640898,-650.30978611,0.000353,7]
[314580120,1708434640908,-1425.168494,0.00035342,2]
[314580121,1708434640917,-9882.64888,0.00035342,2]
[314580122,1708434640926,-138870.423638,0.00035342,2]
[314580123,1708434640935,-6369.35703032,0.000354,2]
[314580124,1708434640945,-8415.96352429,0.000354,2]
[314580125,1708434640955,-170.64638633,0.000354,8]
[314580126,1708434640964,-158.35778267,0.000354,2]
[314580127,1708434640973,-20000.0,0.000354,2]
[314580128,1708434640983,-5000.0,0.000354,3]
[314580129,1708434640992,-255.90538438,0.000354,2]
[314580130,1708434641003,-736.28361631,0.000354,2]
[314580131,1708434641013,-199.18734602,0.000354,7]
[314580132,1708434641023,-395.97065422,0.000354,2]
[314580133,1708434641032,-2533.70711655,0.000354,2]
[314580134,1708434641041,-173.89,0.00035477,2]
[314580135,1708434641050,-200.0,0.0003549,7]
[314580136,1708434641060,-200.0,0.0003549,7]
[314580137,1708434641069,-200.0,0.0003549,7]
[314580138,1708434641079,-700.77392459,0.0003549,2]
[314580139,1708434641088,-700.77392459,0.0003549,2]
[314580140,1708434641097,-392.6640714,0.00035499,30]
[314580141,1708434641106,-392.66407141,0.00035499,30]
[314580142,1708434641116,-4483020.20016749,0.000355,2]
[314580143,1708434641125,-28699.04812139,0.000355,2]
[314580144,1708434641134,-720.52140753,0.000355,2]
[314580145,1708434641144,-552.82900988,0.000355,2]
[314580146,1708434641154,-266.28563994,0.00035515,5]
[314580147,1708434641164,-5986.50396251,0.00035551,8]
[314580148,1708434641173,-177.58,0.00035596,2]
[314580149,1708434641182,-509.37361083,0.00035596,2]
[314580150,1708434641192,-150.0,0.00035596,2]
[314580151,1708434641201,-3333.74,0.00035606,10]
[314580152,1708434641210,-2778.12,0.00035606,10]
[314580153,1708434641220,-200.0,0.00035616,2]
[314580154,1708434641230,-345.0,0.00035616,2]
[314580155,1708434641239,-490.59306223,0.00035616,2]
[314580157,1708434641248,-500.0,0.00035616,2]
[314580159,1708434641258,-500.0,0.00035616,2]
[314580161,1708434641267,-500.0,0.00035616,2]
[314580163,1708434641276,-276.67052694,0.00035616,2]
[314580165,1708434641286,-500.0,0.00035616,2]
[314580167,1708434641295,-500.0,0.00035616,2]
[314580169,1708434641304,-500.0,0.00035616,2]
[314580171,1708434641317,-500.0,0.00035616,2]
[314580173,1708434641350,-500.0,0.00035616,2]
[314580175,1708434641360,-500.0,0.00035616,2]
[314580176,1708434641369,-500.0,0.00035616,2]
[314580178,1708434641379,-500.0,0.00035616,2]
[314580179,1708434641388,-500.0,0.00035616,2]
[314580180,1708434641397,-500.0,0.00035616,2]
[314580181,1708434641407,-500.0,0.00035616,2]
[314580182,1708434641417,-500.0,0.00035616,2]
[314580183,1708434641426,-500.0,0.00035616,2]
[314580184,1708434641435,-500.0,0.00035616,2]
[314580185,1708434641448,-500.0,0.00035616,2]
[314580186,1708434641457,-500.0,0.00035616,2]
[314580187,1708434641466,-513.03360762,0.00035616,2]
[314580188,1708434641475,-500.0,0.00035616,2]
[314580189,1708434641485,-218.21807225,0.00035616,2]
[314580190,1708434641495,-500.0,0.00035616,2]
[314580191,1708434641505,-357.5117564,0.00035616,2]
[314580192,1708434641514,-500.0,0.00035616,2]
[314580193,1708434641525,-500.0,0.00035616,2]
[314580194,1708434641535,-500.0,0.00035616,2]
[314580195,1708434641544,-500.0,0.00035616,2]
[314580196,1708434641554,-500.0,0.00035616,2]
[314580197,1708434641563,-500.0,0.00035616,2]
[314580198,1708434641572,-500.0,0.00035616,2]
[314580199,1708434641582,-500.0,0.00035616,2]
[314580200,1708434641802,-500.0,0.00035616,2]
[314580201,1708434641812,-506.40911685,0.00035616,2]
[314580202,1708434641821,-510.09150056,0.00035616,2]
[314580203,1708434641831,-500.0,0.00035616,2]
[314580204,1708434641839,-500.0,0.00035616,2]
[314580205,1708434641849,-500.0,0.00035616,2]
[314580206,1708434641858,-500.0,0.00035616,2]
[314580207,1708434641867,-500.0,0.00035616,2]
[314580208,1708434641876,-500.0,0.00035616,2]
[314580209,1708434641885,-1002.92254985,0.00035616,2]
[314580210,1708434641894,-619.15489294,0.00035616,2]
[314580211,1708434641903,-531.54401828,0.00035616,2]
[314580212,1708434641911,-500.0,0.00035616,2]
[314580213,1708434641920,-500.0,0.00035616,2]
[314580214,1708434641930,-503.43160485,0.00035616,2]
[314580215,1708434641939,-500.0,0.00035616,2]
[314580216,1708434641948,-500.0,0.00035616,2]
[314580217,1708434641958,-512.68399316,0.00035616,2]
[314580218,1708434641968,-506.7241613,0.00035616,2]
[314580219,1708434641977,-500.0,0.00035616,2]
[314580220,1708434641986,-500.0,0.00035616,2]
[314580221,1708434641996,-548.03353086,0.00035616,2]
[314580222,1708434642006,-500.0,0.00035616,2]
[314580223,1708434642016,-172.85947637,0.00035616,2]
[314580224,1708434642025,-500.0,0.00035616,2]
[314580225,1708434642034,-537.29259594,0.00035616,2]
[314580226,1708434642043,-532.00482116,0.00035616,2]
[314580227,1708434642052,-508.03126818,0.00035616,2]
[314580228,1708434642062,-530.4065638,0.00035616,2]
[314580229,1708434642071,-482.38206888,0.00035616,2]
[314580230,1708434642080,-544.62060648,0.00035616,2]
[314580231,1708434642088,-500.0,0.00035616,2]